[Event "Romanian Championship 2024"]
[Site "Eforie Nord"]
[Date "2024.03.02"]
[Round "9.6"]
[White "Bonte, Andrei-Mihai"]
[Black "Ilinca, Felix-Antonio"]
[Result "0-1"]
[ECO "A43"]
[WhiteElo "2266"]
[BlackElo "2415"]
[Annotator "TA"]
[PlyCount "70"]
[EventDate "2024.02.24"]
[EventType "swiss"]
[EventCountry "ROU"]
[SourceTitle "playchess.com"]
[Source "ChessBase"]
[SourceQuality "1"]
[TimeControl "40/5400+30:900+30"]

{[%evp 9,70,14,17,14,18,12,0,0,28,27,52,56,50,62,71,-10,46,0,139,76,80,70,74,61,66,97,79,21,77,12,12,3,15,-7,0,-4,0,-43,-58,-207,-214,-325,-308,-314,-314,-313,-314,-320,-320,-313,-313,-303,-288,-296,-289,-290,-286,-362,-354,-387,-390,-389,-379]} 1. d4 {[%emt 0:03:04]} Nf6 {[%emt 0:04:47]} 2. Nf3 {[%emt 0:00:10]} c5 {[%emt 0:00:20]} 3. d5 {[%emt 0:03:10]} b5 {[%emt 0:00:22]} 4. e4 {[%emt 0:03:25]} Nxe4 {[%emt 0:00:42]} 5. Bd3 {[%emt 0:00:49]} Qa5+ $1 {[%emt 0:00:45]} 6. Nbd2 {[%emt 0:00:14][%mdl 1024] White has compensation.} Nf6 {[%emt 0:00:50][%cal Oc5c4]} 7. O-O {[%emt 0:00:27]} c4 {[%emt 0:01:39]} 8. Be4 {[%emt 0:00:40] The position is equal.} d6 {[%emt 0:00:51] [#]} 9. a4 $1 {[%emt 0:04:01]} a6 {[%emt 0:06:29]} (9... g6 10. Nd4) 10. Re1 {[%emt 0:07:40][%cal Ob2b4]} (10. b4 $5 cxb3 11. Bb2 $14 (11. cxb3 g6 $14) (11. Nxb3 Qc7 $14)) 10... Bb7 {[%emt 0:03:55] [#]} 11. b4 $1 {[%emt 0:14:18]} Qc7 {[%emt 0:12:40] [#]} (11... Qxb4 12. Ba3 Qa5 (12... Qxa4 $2 13. Bxd6 $18) 13. axb5 axb5 14. Qb1 $16 (14. Bb2 Qb6 $16)) (11... Qb6 12. Bb2) 12. Nd4 {[%emt 0:08:02]} ({Only move:} 12. axb5 $1 $16 {[%cal Ob5b6] Hoping for b6!} axb5 13. Rxa8 Bxa8 14. Nd4) 12... c3 {[%emt 0:03:51]} ({Black should try} 12... g6 $11) 13. N2b3 {[%emt 0:02:34]} (13. Nb1 $1 $14) 13... e5 {[%emt 0:07:45]} (13... Bxd5 $2 14. Bxd5 bxa4 15. Bxa8 $18) (13... Nxe4 $11 {keeps the balance.} 14. Rxe4 Qc4) 14. Bf3 {[%emt 0:04:10]} (14. dxe6 $142 $1 Nxe4 15. axb5) 14... Be7 $16 {[%emt 0:06:32]} 15. Nf5 {[%emt 0:02:41][%cal Oe1e5]} O-O $1 {[%emt 0:00:57]} 16. axb5 {[%emt 0:02:15][%cal Ob5b6]} axb5 {[%emt 0:00:27]} 17. Rxa8 {[%emt 0:00:13]} Bxa8 {[%emt 0:00:07]} 18. Qd3 {[%emt 0:00:43]} (18. Nbd4 $16) 18... Rc8 {[%emt 0:05:47]} (18... Re8 $11) 19. Nxe7+ {[%emt 0:01:40]} ({Of course not} 19. Qxb5 Bf8 $11) (19. Bg5 $1 $16 {[%cal Oe1a1] And now Ra1! would win.} Bd8 20. Bxf6 (20. Qxb5 Nbd7 $14) 20... Bxf6 21. Ra1 (21. Qxb5 Nd7 $14)) 19... Qxe7 $11 {[%emt 0:00:06]} 20. Bg5 {[%emt 0:04:52][%cal Og5f6] Bxf6! would now be deadly.} Nbd7 {[%emt 0:02:38]} 21. Qxb5 {[%emt 0:03:38]} (21. Nd4 {with more complications.} Rc4 22. Nxb5 Rxb4 23. Ra1) 21... h6 {[%emt 0:01:12]} 22. Bxf6 {[%emt 0:03:55]} Nxf6 {[%emt 0:00:07]} 23. Na5 {[%emt 0:02:05] Repels Qb7} (23. Nd4 $5) 23... e4 {[%emt 0:03:37]} 24. Bxe4 {[%emt 0:19:47] This costs White the game.} Nxe4 $19 {[%emt 0:00:57]} 25. Nc6 {[%emt 0:00:07]} (25. Qd3 $142 Re8 26. Nc6 Bxc6 27. dxc6) 25... Bxc6 {[%emt 0:03:13]} 26. dxc6 {[%emt 0:00:15] [#]} d5 $1 {[%emt 0:00:37]} 27. Qxd5 {[%emt 0:01:12]} Nf6 {[%emt 0:00:06]} 28. Rxe7 {[%emt 0:07:38]} Nxd5 {[%emt 0:00:06][%mdl 4096] Endgame. KRN-KR} 29. Re4 {[%emt 0:00:40]} Rxc6 {[%emt 0:00:11] ...Rb6 is the strong threat.} 30. Rd4 {[%emt 0:00:05]} Nc7 {[%emt 0:01:03]} 31. Rd8+ {[%emt 0:00:10]} Kh7 {[%emt 0:00:06]} 32. Rc8 {[%emt 0:00:21] [#]} Rd6 $1 {[%emt 0:00:46][%cal Rd6d1]} 33. g3 {[%emt 0:00:29]} (33. Kf1 Nd5) 33... Nb5 {[%emt 0:00:08] aiming for ...Rd2. Black is winning.} 34. Kg2 {[%emt 0:01:03]} Rd4 {[%emt 0:00:12]} 35. Rb8 {[%emt 0:00:50]} Rxb4 {[%emt 0:00:05] Weighted Error Value: White=0.31/Black=0.18 (very precise) .  Mistake:       	White=7     	Black=3      Inaccurate:     	White=1     	---        OK:         	White=11    	Black=14     Best:        	White=2     	Black=1      Strong:       	---       	Black=1      Brilliant:      	White=1     	Black=1} 0-1

[Event "Romanian Championship 2024"]
[Site "Eforie Nord"]
[Date "2024.03.02"]
[Round "9.7"]
[White "Antal, Hunor-Zoltan"]
[Black "Stoleriu, George"]
[Result "1/2-1/2"]
[ECO "E90"]
[WhiteElo "2272"]
[BlackElo "2391"]
[Annotator "RC"]
[PlyCount "205"]
[EventDate "2024.02.24"]
[EventType "swiss"]
[EventCountry "ROU"]
[SourceTitle "playchess.com"]
[Source "ChessBase"]
[SourceQuality "1"]
[TimeControl "40/5400+30:900+30"]

1. c4 {[%emt 0:00:29]} Nf6 {[%emt 0:00:35]} 2. Nf3 {[%emt 0:00:17]} g6 {[%emt 0:01:53]} 3. Nc3 {[%emt 0:00:20]} Bg7 {[%emt 0:00:13]} 4. d4 {[%emt 0:00:08]} d6 {[%emt 0:00:19]} 5. e4 {[%emt 0:00:11]} O-O {[%emt 0:00:20]} 6. h3 {[%emt 0:00:03]} c5 {[%emt 0:11:42]} 7. d5 {[%emt 0:00:19]} e6 {[%emt 0:00:41]} 8. Bd3 {[%emt 0:00:26]} exd5 {[%emt 0:03:53]} 9. exd5 {[%emt 0:00:58]} Re8+ {[%emt 0:09:26]} 10. Be3 {[%emt 0:00:07]} Nh5 {[%emt 0:02:58]} 11. O-O {[%emt 0:01:15]} Rxe3 {[%emt 0:01:07]} 12. fxe3 {[%emt 0:00:06]} Ng3 {[%emt 0:03:11]} 13. Re1 {[%emt 0:04:22]} Nd7 {[%emt 0:00:53]} 14. Ne2 {[%emt 0:04:34]} Nxe2+ {[%emt 0:07:15]} 15. Qxe2 {[%emt 0:00:07]} Ne5 {[%emt 0:00:11]} 16. Rab1 {[%emt 0:25:34]} a5 {[%emt 0:03:54]} 17. Rf1 {[%emt 0:16:16]} Qe7 {[%emt 0:02:33]} 18. Bc2 {[%emt 0:00:30]} Bd7 {[%emt 0:09:46]} 19. Nxe5 {[%emt 0:08:19]} Bxe5 {[%emt 0:02:15]} 20. Rf3 {[%emt 0:00:11]} Ra6 {[%emt 0:05:45]} 21. Rbf1 {[%emt 0:01:48]} f6 {[%emt 0:00:58]} 22. a4 {[%emt 0:05:14]} Ra8 {[%emt 0:01:17]} 23. Qd3 {[%emt 0:00:55]} b6 {[%emt 0:02:43]} 24. g4 {[%emt 0:06:23]} Qg7 {[%emt 0:01:10]} 25. R1f2 {[%emt 0:02:04]} Qh6 {[%emt 0:01:41]} 26. b3 {[%emt 0:03:20]} Re8 {[%emt 0:03:04]} 27. Kf1 {[%emt 0:04:04]} Kf7 {[%emt 0:05:12]} 28. Ke1 {[%emt 0:02:44]} Ke7 {[%emt 0:00:38]} 29. Kd1 {[%emt 0:00:51]} Kd8 {[%emt 0:00:49]} 30. Kc1 {[%emt 0:02:59]} Qg5 {[%emt 0:12:35]} 31. Kb1 {[%emt 0:00:34]} Kc7 {[%emt 0:00:05]} 32. Qd2 {[%emt 0:02:24]} Kd8 {[%emt 0:02:17]} 33. Rg2 {[%emt 0:00:31]} Kc7 {[%emt 0:00:51]} 34. Qf2 {[%emt 0:00:37]} Bc3 {[%emt 0:02:24]} 35. h4 {[%emt 0:03:23]} Qe5 {[%emt 0:00:06]} 36. Qg3 {[%emt 0:00:16]} Qe7 {[%emt 0:00:24]} 37. h5 {[%emt 0:00:25]} g5 {[%emt 0:01:54]} 38. h6 {[%emt 0:01:37]} Rf8 {[%emt 0:00:48]} 39. Bd3 {[%emt 0:00:19]} Rf7 {[%emt 0:00:50]} 40. Qf2 {[%emt 0:00:00]} Kd8 {[%emt 0:00:00]} 41. Qc2 {[%emt 0:04:52]} Be5 {[%emt 0:02:36]} 42. Rh3 {[%emt 0:01:59]} Bc8 {[%emt 0:01:50]} 43. Be4 {[%emt 0:01:03]} Bd7 {[%emt 0:00:22]} 44. Qd3 {[%emt 0:00:07]} Bc8 {[%emt 0:00:44]} 45. Kc2 {[%emt 0:00:16]} Bd7 {[%emt 0:00:02]} 46. Bf5 {[%emt 0:00:46]} Bxf5 {[%emt 0:01:02]} 47. Qxf5 {[%emt 0:00:05]} Qd7 {[%emt 0:00:03]} 48. Qe4 {[%emt 0:04:51]} Ke8 {[%emt 0:02:26]} 49. Kd3 {[%emt 0:01:21]} Kf8 {[%emt 0:00:04]} 50. Rf2 {[%emt 0:00:15]} Kg8 {[%emt 0:01:23]} 51. Rf1 {[%emt 0:01:36]} Kf8 {[%emt 0:01:02]} 52. Rhf3 {[%emt 0:00:09]} Kg8 {[%emt 0:00:10]} 53. Rf5 {[%emt 0:00:24]} Qe7 {[%emt 0:01:19]} 54. R1f2 {[%emt 0:01:02]} Kf8 {[%emt 0:01:38]} 55. Ke2 {[%emt 0:01:42]} Kg8 {[%emt 0:00:05]} 56. R5f3 {[%emt 0:01:39]} Qd7 {[%emt 0:01:05]} 57. Kd3 {[%emt 0:00:15]} Kf8 {[%emt 0:00:29]} 58. Rf1 {[%emt 0:01:10]} Kg8 {[%emt 0:01:43]} 59. R3f2 {[%emt 0:00:29]} Kf8 {[%emt 0:00:19]} 60. Qf3 {[%emt 0:00:08]} Kg8 {[%emt 0:00:40]} 61. Qh3 {[%emt 0:01:36]} Kf8 {[%emt 0:00:38]} 62. Rf5 {[%emt 0:00:32]} Qe7 {[%emt 0:00:18]} 63. Qh1 {[%emt 0:00:51]} Kg8 {[%emt 0:00:21]} 64. Qe4 {[%emt 0:00:07]} Kf8 {[%emt 0:00:18]} 65. Ke2 {[%emt 0:00:08]} Kg8 {[%emt 0:00:10]} 66. Kf3 {[%emt 0:00:20]} Kf8 {[%emt 0:00:25]} 67. Kg2 {[%emt 0:00:05]} Kg8 {[%emt 0:00:27]} 68. R5f3 {[%emt 0:02:29]} Qd7 {[%emt 0:00:11]} 69. R3f2 {[%emt 0:00:58]} Kf8 {[%emt 0:00:15]} 70. Rf5 {[%emt 0:01:40]} Qe7 {[%emt 0:00:04]} 71. Re1 {[%emt 0:01:09]} Kg8 {[%emt 0:00:16]} 72. Qd3 {[%emt 0:00:37]} Kf8 {[%emt 0:00:25]} 73. Rf2 {[%emt 0:01:04]} Qd7 {[%emt 0:00:02]} 74. Qe4 {[%emt 0:00:06]} Kg8 {[%emt 0:00:09]} 75. Rg1 {[%emt 0:00:20]} Kf8 {[%emt 0:00:08]} 76. Kf1 {[%emt 0:00:06]} Kg8 {[%emt 0:00:27]} 77. Ke2 {[%emt 0:00:05]} Kf8 {[%emt 0:00:03]} 78. Kd3 {[%emt 0:00:09]} Kg8 {[%emt 0:00:31]} 79. Rgf1 {[%emt 0:00:09]} Kf8 {[%emt 0:00:04]} 80. Rg2 {[%emt 0:02:26]} Kg8 {[%emt 0:00:07]} 81. Qf5 {[%emt 0:00:07]} Qxf5+ {[%emt 0:01:06]} 82. Rxf5 {[%emt 0:00:44]} Kf8 {[%emt 0:00:09]} 83. Rgf2 {[%emt 0:00:13]} Ke7 {[%emt 0:00:44]} 84. Ke4 {[%emt 0:00:18]} Rf8 {[%emt 0:00:40]} 85. R5f3 {[%emt 0:00:14]} Rc8 {[%emt 0:00:36]} 86. Rf1 {[%emt 0:00:58]} Rb8 {[%emt 0:00:27]} 87. Rf5 {[%emt 0:00:17]} Rd8 {[%emt 0:00:23]} 88. Rd1 {[%emt 0:00:28]} Rf8 {[%emt 0:00:50]} 89. Rd2 {[%emt 0:00:22]} Rf7 {[%emt 0:00:35]} 90. Rf3 {[%emt 0:00:53]} Rf8 {[%emt 0:00:06]} 91. Rdf2 {[%emt 0:00:17]} Rc8 {[%emt 0:00:31]} 92. Rf5 {[%emt 0:00:18]} Rd8 {[%emt 0:00:09]} 93. Kf3 {[%emt 0:01:08]} Rc8 {[%emt 0:00:24]} 94. Re2 {[%emt 0:00:08]} Rd8 {[%emt 0:00:11]} 95. Ke4 {[%emt 0:00:31]} Rc8 {[%emt 0:00:35]} 96. Rf3 {[%emt 0:00:03]} Rb8 {[%emt 0:00:09]} 97. Kf5 {[%emt 0:00:07]} Rc8 {[%emt 0:00:10]} 98. Ke4 {[%emt 0:00:33]} Rb8 {[%emt 0:00:25]} 99. Rd2 {[%emt 0:00:04]} Rd8 {[%emt 0:00:10]} 100. Rf5 {[%emt 0:00:07]} Rf8 {[%emt 0:00:05]} 101. Rdf2 {[%emt 0:00:15]} Rc8 {[%emt 0:03:47]} 102. Rd2 {[%emt 0:00:03]} Rf8 {[%emt 0:00:39]} 103. Rdf2 {[%emt 0:00:05]} 1/2-1/2

[Event "Romanian Championship 2024"]
[Site "Eforie Nord"]
[Date "2024.03.02"]
[Round "9.8"]
[White "Tudor, Henry Edward"]
[Black "Secheres, Adrian-Simion"]
[Result "1-0"]
[ECO "A49"]
[WhiteElo "2239"]
[BlackElo "2371"]
[Annotator "TA"]
[PlyCount "71"]
[EventDate "2024.02.24"]
[EventType "swiss"]
[EventCountry "ROU"]
[SourceTitle "playchess.com"]
[Source "ChessBase"]
[SourceQuality "1"]
[TimeControl "40/5400+30:900+30"]

{[%evp 10,71,18,15,22,24,27,15,16,17,26,27,33,25,28,37,36,28,18,27,35,23,47,44,45,26,36,25,39,37,68,63,63,56,113,0,111,70,119,116,89,98,96,80,114,119,89,112,218,259,393,407,410,405,408,400,569,556,669,685,694,693,738,733]} 1. Nf3 {[%emt 0:00:37]} Nf6 {[%emt 0:00:47]} 2. b3 {[%emt 0:00:21]} g6 {[%emt 0:01:01]} 3. Bb2 {[%emt 0:00:09]} Bg7 {[%emt 0:00:40]} 4. g3 {[%emt 0:00:11]} O-O {[%emt 0:00:59]} 5. Bg2 {[%emt 0:00:06]} d6 {[%emt 0:01:03]} 6. d4 {[%emt 0:00:45]} b5 {[%emt 0:01:56]} 7. O-O {[%emt 0:00:34][%cal Of3e5]} Bb7 {[%emt 0:00:23]} 8. Qd3 {[%emt 0:00:06]} a6 {[%emt 0:00:59] Die Stellung ist ausgeglichen.} 9. c4 {[%emt 0:01:24]} bxc4 {[%emt 0:05:53]} 10. bxc4 {[%emt 0:02:13]} Nbd7 {[%emt 0:01:46]} 11. Nbd2 {[%emt 0:01:04]} Rb8 {[%emt 0:06:17] [#] Droht stark ...Bxf3.} 12. Rab1 {[%emt 0:01:16]} Re8 {[%emt 0:00:26]} 13. Bc3 {[%emt 0:10:12]} Ba8 {[%emt 0:07:50]} 14. e4 {[%emt 0:29:57]} e5 {[%emt 0:08:36]} 15. d5 {[%emt 0:00:09]} Nc5 {[%emt 0:01:11]} 16. Qc2 {[%emt 0:05:28]} c6 {[%emt 0:14:45]} 17. Rxb8 {[%emt 0:19:47]} Qxb8 {[%emt 0:00:58]} 18. Rb1 {[%emt 0:00:10]} Qa7 {[%emt 0:44:00]} 19. Ne1 {[%emt 0:05:14]} Ng4 {[%cal Og4f2]} 20. Ba5 $36 {[%emt 0:20:47][%mdl 2048] Weiss kämpft um Vorteil.} Nd7 {[%emt 0:01:00] Gegen Bb6 gerichtet.} (20... Nxf2 $2 21. Bb6 Qe7 22. Bxc5 $18 (22. Kxf2 Nd7 $18)) 21. Nd3 {[%emt 0:00:00][%cal Oc4c5]} f5 {[%emt 0:00:00]} ({Günstiger ist} 21... Rc8 $14) 22. Qa4 {[%emt 0:00:00]} ({Vorzuziehen ist} 22. h3 $16 Ngf6 23. exf5 cxd5 24. cxd5) 22... cxd5 {[%emt 0:00:00]} (22... Qd4 $1 $11 23. dxc6 Nc5) 23. cxd5 {[%emt 0:00:00]} Ngf6 {[%emt 0:00:00]} (23... Rc8 $14) 24. Rc1 {[%emt 0:00:00] Weiß steht aktiver.} Qd4 {[%emt 0:00:00]} 25. Qxd4 {[%emt 0:00:00]} exd4 {[%emt 0:00:00]} 26. f3 {[%emt 0:00:00]} Bh6 {[%emt 0:00:00]} 27. Rc7 {[%emt 0:00:00]} Be3+ {[%emt 0:00:00]} 28. Kf1 {[%emt 0:00:00]} fxe4 {[%emt 0:00:00]} (28... Nb6 $16) 29. fxe4 $18 {[%emt 0:00:00]} Nf8 {[%emt 0:00:00]} (29... Bxd2 {war einen Versuch wert.} 30. Bxd2 Nb6) 30. Nc4 {[%emt 0:00:23][%cal Bd2c4,Bc4b6,Bb6d5,Bd5f6][%mdl 32]} Nxe4 {[%emt 0:00:00]} 31. Bxe4 {[%emt 0:00:09]} Rxe4 {[%emt 0:00:00]} 32. Nb6 {[%emt 0:00:03]} (32. Nxd6 Bxd5 33. Rc5 (33. Nxe4 Bxe4 34. Nf2 Bf3 $18) 33... Ba8 $18) 32... Bxd5 {[%emt 0:02:06]} (32... Bg5 {war nötig.} 33. Ra7 (33. Nxa8 Bd8 $18) 33... Re3) 33. Nxd5 {[%emt 0:00:01] [#] Droht Nf6+ und aus. Ein dynamisches Springerpaar. Weiß steht klar auf Gewinn.} Kh8 {[%emt 0:00:19]} 34. Nf6 {[%emt 0:03:54]} Re6 {[%emt 0:00:08]} 35. Rf7 {[%emt 0:00:36]} Bh6 {[%emt 0:00:12]} 36. Bb6 {[%emt 0:00:23] Gewichteter Fehlerwert: Weiß=0.11 (sehr präzise) /Schwarz=0.37.  Fehler:       	Weiß=1     	Schwarz=6     Ungenau:       	Weiß=1     	Schwarz=2     OK:         	Weiß=13    	Schwarz=10    Bester:       	Weiß=1     	Schwarz=1} 1-0

[Event "Romanian Championship 2024"]
[Site "Eforie Nord"]
[Date "2024.03.02"]
[Round "9.9"]
[White "Bulmaga, Irina"]
[Black "Radu, David Cr."]
[Result "1-0"]
[ECO "B60"]
[WhiteElo "2439"]
[BlackElo "2142"]
[Annotator "TA"]
[PlyCount "69"]
[EventDate "2024.02.24"]
[EventType "swiss"]
[EventCountry "ROU"]
[SourceTitle "playchess.com"]
[Source "ChessBase"]
[SourceQuality "1"]
[TimeControl "40/5400+30:900+30"]

{[%evp 11,69,33,54,23,19,19,77,75,85,25,42,17,18,18,33,17,32,41,31,35,37,25,24,0,163,176,223,167,221,243,263,259,285,300,283,251,218,192,291,166,329,314,333,287,296,254,235,247,241,197,682,1573,1138,601,1803,1978,2104,1107,1438,1323]} 1. e4 {[%emt 0:00:04]} c5 {[%emt 0:04:01]} 2. Nf3 {[%emt 0:00:08]} Nc6 {[%emt 0:00:33]} 3. d4 {[%emt 0:00:15]} cxd4 {[%emt 0:00:08]} 4. Nxd4 {[%emt 0:00:05]} Nf6 {[%emt 0:00:23]} 5. Nc3 {[%emt 0:00:10]} d6 {[%emt 0:00:41]} 6. Bg5 {[%emt 0:00:08]} a6 {[%emt 0:00:09]} 7. Nxc6 {[%emt 0:02:58]} bxc6 {[%emt 0:00:13]} 8. Bc4 {[%emt 0:00:22]} e5 {[%emt 0:15:11]} (8... e6 $11) 9. Qd3 $16 {[%emt 0:19:40] White is much more active. The black rooks are passive. White is better.} Be7 {[%emt 0:04:51]} 10. O-O {[%emt 0:04:19]} ({White should play} 10. O-O-O $16) 10... O-O {[%emt 0:07:14]} 11. Bxf6 {[%emt 0:09:36]} Bxf6 {[%emt 0:03:34]} 12. b4 {[%emt 0:00:28]} d5 {[%emt 0:30:48]} 13. exd5 {[%emt 0:03:37]} e4 $1 {[%emt 0:00:08]} 14. Qe3 {[%emt 0:09:25]} Bxc3 {[%emt 0:08:08]} 15. Qxc3 {[%emt 0:00:23]} cxd5 {[%emt 0:00:04][%cal Od8c7] ...Qc7! would now be deadly.} 16. Rad1 {[%emt 0:03:15]} Be6 {[%emt 0:00:52] Strongly threatening ...Rc8.} 17. Bxd5 {[%emt 0:08:35]} Qc8 {[%emt 0:04:18] [#] White stays focused until the end.} (17... Bxd5 $11 18. Qe5 Qb6 19. Rxd5 (19. Qxd5 Qxb4 20. Rd4 Qb2 $11) 19... Qxb4) 18. Qb3 $1 $18 {[%emt 0:01:55]} a5 {[%emt 0:01:05]} (18... Rd8 {is a better defense.} 19. a3 h6 20. Bxe6 Qxe6) 19. a3 {[%emt 0:01:32] Threatens to win with c4.} axb4 {[%emt 0:01:34]} (19... Bxd5 $142 20. Rxd5 a4) 20. axb4 {[%emt 0:00:19]} Bxd5 {[%emt 0:00:27]} 21. Rxd5 {[%emt 0:00:07]} (21. Qxd5 Qxc2 22. Qf5 g6 $11) 21... Qe6 {[%emt 0:00:05]} 22. c4 {[%emt 0:00:30]} f5 {[%emt 0:00:26]} 23. h3 {[%emt 0:11:56]} f4 {[%emt 0:01:31]} 24. Re1 {[%emt 0:03:11][%cal Od5d6]} Rf6 {[%emt 0:09:16]} (24... Kh8 $142 25. b5 e3) 25. Qd1 {[%emt 0:04:02]} (25. c5 $142 {[%cal Oe1e4] aiming for Rxe4!} Rg6 26. Rd3) 25... Re8 $2 {[%emt 0:05:37] [#]} (25... e3 {keeps fighting.} 26. c5 Rff8) 26. Rd8 {[%emt 0:02:36]} Rff8 {[%emt 0:01:26][%cal Bf6f8,Bf8e8,Be8e4][%mdl 32]} 27. Rxe8 {[%emt 0:07:11]} Rxe8 {[%emt 0:00:03][%mdl 4096] Endgame. KQR-KQR} 28. Qd4 {[%emt 0:04:26] And now b5 would win.} e3 {[%emt 0:01:08]} 29. fxe3 {[%emt 0:00:32]} (29. Qxf4 $2 {perishes.} exf2+ 30. Qxf2 Qxe1+ $19) 29... fxe3 {[%emt 0:00:04]} 30. b5 {[%emt 0:00:55]} Qe4 $2 {[%emt 0:00:22]} (30... e2 31. b6 Qc6) 31. Qxe4 {[%emt 0:00:48] White is clearly winning.} Rxe4 {[%emt 0:00:03]} 32. Rc1 {[%emt 0:01:31]} ({Not} 32. c5 Re5 $16) 32... e2 {[%emt 0:00:47]} 33. Kf2 {[%emt 0:00:01]} e1=Q+ {[%emt 0:00:12]} 34. Rxe1 {[%emt 0:00:02]} Rxc4 {[%emt 0:00:08]} 35. Rb1 {[%emt 0:00:03] Weighted Error Value: White=0.26 (precise) /Black=0.72.  Loses game:     	---       	Black=1      Mistake:       	White=2     	Black=6      OK:         	White=7     	Black=4      Best:        	White=1     	Black=2      Strong:       	---       	Black=1} 1-0

[Event "Romanian Championship 2024"]
[Site "Eforie Nord"]
[Date "2024.03.02"]
[Round "9.10"]
[White "Prelipcean, Eric-Matei"]
[Black "David, Alexandru-Vasile"]
[Result "1/2-1/2"]
[ECO "A48"]
[WhiteElo "2103"]
[BlackElo "2360"]
[Annotator "TA"]
[PlyCount "44"]
[EventDate "2024.02.24"]
[EventType "swiss"]
[EventCountry "ROU"]
[SourceTitle "playchess.com"]
[Source "ChessBase"]
[SourceQuality "1"]
[TimeControl "40/5400+30:900+30"]

{[%evp 14,44,-6,7,0,1,15,7,6,0,11,-39,-39,-32,-37,-38,-9,-18,-11,-18,0,0,7,0,9,18,9,14,8,8,20,12,29]} 1. d4 {[%emt 0:04:28]} Nf6 {[%emt 0:00:32]} 2. Nf3 {[%emt 0:00:07]} g6 {[%emt 0:00:06]} 3. Bg5 {[%emt 0:00:05]} Bg7 {[%emt 0:00:06]} 4. Nbd2 {[%emt 0:00:06]} O-O {[%emt 0:00:09]} 5. c3 {[%emt 0:00:12]} d6 {[%emt 0:00:38]} 6. e4 {[%emt 0:00:19]} c5 {[%emt 0:00:33]} 7. dxc5 {[%emt 0:00:12]} dxc5 {[%emt 0:00:09]} 8. Be2 {[%emt 0:00:42]} Nc6 {[%emt 0:01:30]} 9. Qc2 {[%emt 0:00:50]} Qc7 {[%emt 0:00:22]} 10. Nc4 {[%emt 0:00:35]} h6 {[%emt 0:01:34]} 11. Bh4 {[%emt 0:00:09]} Nh5 {[%emt 0:00:36]} 12. Bg3 {[%emt 0:00:18]} (12. Ne3 $11) 12... Nxg3 $15 {[%emt 0:02:59]} 13. hxg3 {[%emt 0:00:08]} b5 {[%emt 0:00:04]} 14. Ne3 {[%emt 0:00:38]} b4 {[%emt 0:00:07]} 15. O-O {[%emt 0:10:43] Die Stellung ist ausgeglichen.} bxc3 {[%emt 0:02:49]} 16. bxc3 {[%emt 0:00:02]} e6 {[%emt 0:01:34]} 17. Nd2 {[%emt 0:04:08]} Bb7 {[%emt 0:07:15]} 18. f4 {[%emt 0:02:29]} c4 {[%emt 0:00:09]} 19. Nexc4 {[%emt 0:05:48]} Na5 {[%emt 0:00:50]} 20. Nxa5 {[%emt 0:01:21]} Qxa5 {[%emt 0:00:06]} 21. e5 {[%emt 0:00:13]} Rac8 {[%emt 0:02:26]} 22. Rac1 {[%emt 0:03:36]} Rfd8 {[%emt 0:00:13] Gewichteter Fehlerwert: Weiß=0.05 (makellos) /Schwarz=0.07 (makellos) .  Fehler:       	Weiß=1     	---        Ungenau:       	---       	Schwarz=1     OK:         	Weiß=7     	Schwarz=5} 1/2-1/2